[Event "FIDE WYCC Open U14 2023"]
[Site "Montesilvano"]
[Date "2023.11.20"]
[Round "7.29"]
[White "Schuricht, Emil Frederick"]
[Black "Hobson, Kenneth"]
[Result "1/2-1/2"]
[ECO "E33"]
[WhiteElo "1998"]
[BlackElo "2142"]
[Annotator "RC"]
[PlyCount "169"]
[EventDate "2023.11.13"]
[EventType "swiss"]
[EventCountry "ITA"]
[SourceTitle "playchess.com"]
[Source "ChessBase"]
[SourceQuality "1"]
[TimeControl "40/5400+30:1800+30"]

1. d4 {[%emt 0:00:04]} Nf6 {[%emt 0:00:06]} 2. c4 {[%emt 0:00:04]} e6 {[%emt 0:00:27]} 3. Nc3 {[%emt 0:00:08]} Bb4 {[%emt 0:00:21]} 4. Qc2 {[%emt 0:00:07]} Nc6 {[%emt 0:00:24]} 5. Nf3 {[%emt 0:01:35]} d6 {[%emt 0:00:31]} 6. Bd2 {[%emt 0:01:01]} Qe7 {[%emt 0:01:26]} 7. a3 {[%emt 0:02:22]} Bxc3 {[%emt 0:00:06]} 8. Bxc3 {[%emt 0:00:11]} a5 {[%emt 0:00:40]} 9. e3 {[%emt 0:04:24]} e5 {[%emt 0:00:54]} 10. dxe5 {[%emt 0:01:04]} dxe5 {[%emt 0:00:36]} 11. Be2 {[%emt 0:00:26]} O-O {[%emt 0:02:23]} 12. O-O {[%emt 0:00:38]} a4 {[%emt 0:02:38]} 13. Rfd1 {[%emt 0:06:04]} Re8 {[%emt 0:02:12]} 14. h3 {[%emt 0:12:08]} h6 {[%emt 0:03:13]} 15. Nd2 {[%emt 0:05:47]} Be6 {[%emt 0:09:41]} 16. Ne4 {[%emt 0:04:52]} Nxe4 {[%emt 0:05:13]} 17. Qxe4 {[%emt 0:00:11]} f5 {[%emt 0:01:33]} 18. Qc2 {[%emt 0:01:51]} Qf7 {[%emt 0:03:50]} 19. Rd2 {[%emt 0:15:34]} e4 {[%emt 0:08:53]} 20. b3 {[%emt 0:06:49]} b6 {[%emt 0:03:23]} 21. bxa4 {[%emt 0:01:29]} Na5 {[%emt 0:20:21]} 22. Bb4 {[%emt 0:06:17]} c5 {[%emt 0:00:20]} 23. Bxa5 {[%emt 0:01:12]} Rxa5 {[%emt 0:02:09]} 24. Rb1 {[%emt 0:01:55]} Qc7 {[%emt 0:08:48]} 25. Qd1 {[%emt 0:05:00]} Bf7 {[%emt 0:02:25]} 26. Rd6 Rxa4 {[%emt 0:00:05]} 27. Rd7 {[%emt 0:02:37]} Qc6 28. Rxb6 {[%emt 0:00:19]} Qxb6 {[%emt 0:00:55]} 29. Qxa4 {[%emt 0:02:51]} Qb1+ {[%emt 0:04:37]} 30. Bf1 {[%emt 0:03:08]} Qa1 31. Qb3 Be6 {[%emt 0:02:56]} 32. Rd1 {[%emt 0:00:47]} Qe5 {[%emt 0:00:13]} 33. Rb1 {[%emt 0:02:06]} Ra8 {[%emt 0:02:06]} 34. a4 {[%emt 0:01:17]} Qc7 {[%emt 0:01:31]} 35. Be2 {[%emt 0:02:06]} Bd7 {[%emt 0:02:49]} 36. Ra1 {[%emt 0:02:32]} Bc6 {[%emt 0:02:34]} 37. Bd1 {[%emt 0:02:31]} Qa5 {[%emt 0:01:54]} 38. Bc2 {[%emt 0:01:04]} Kh7 {[%emt 0:02:31]} 39. Qb2 {[%emt 0:01:14]} Qc7 {[%emt 0:02:34]} 40. Qc3 {[%emt 0:00:00]} Ra5 {[%emt 0:00:00]} 41. Ra2 {[%emt 0:03:55]} Bd7 {[%emt 0:05:43]} 42. Qd2 {[%emt 0:06:36]} Be6 {[%emt 0:01:11]} 43. Bb3 {[%emt 0:02:01]} Qb6 {[%emt 0:01:38]} 44. Qc3 {[%emt 0:01:19]} Qb4 {[%emt 0:02:51]} 45. Qxb4 {[%emt 0:00:51]} cxb4 {[%emt 0:00:02]} 46. Rd2 {[%emt 0:02:53]} Rc5 {[%emt 0:02:41]} 47. Rd4 {[%emt 0:01:58]} Kg6 {[%emt 0:01:07]} 48. Kf1 {[%emt 0:00:34]} Kf6 {[%emt 0:00:33]} 49. Ke2 {[%emt 0:00:44]} Ke5 {[%emt 0:00:48]} 50. Kd2 {[%emt 0:00:46]} g5 {[%emt 0:02:14]} 51. Kc2 {[%emt 0:02:44]} f4 {[%emt 0:02:28]} 52. Ba2 {[%emt 0:01:15]} h5 {[%emt 0:05:03]} 53. Kb3 {[%emt 0:00:36]} f3 {[%emt 0:00:57]} 54. gxf3 {[%emt 0:00:10]} exf3 {[%emt 0:00:20]} 55. Kxb4 {[%emt 0:00:13]} Rc8 {[%emt 0:00:27]} 56. a5 {[%emt 0:03:49]} Rb8+ {[%emt 0:00:53]} 57. Kc3 {[%emt 0:01:07]} Bxh3 {[%emt 0:02:09]} 58. Rd5+ {[%emt 0:02:57]} Kf6 {[%emt 0:00:07]} 59. Rb5 {[%emt 0:02:13]} Ra8 {[%emt 0:00:52]} 60. c5 {[%emt 0:01:25]} g4 {[%emt 0:00:33]} 61. Bd5 {[%emt 0:01:54]} Ra7 {[%emt 0:01:33]} 62. Bc4 {[%emt 0:02:36]} h4 {[%emt 0:02:37]} 63. Rb6+ {[%emt 0:01:33]} Kg5 {[%emt 0:00:43]} 64. Rb8 {[%emt 0:00:42]} Rxa5 {[%emt 0:02:13]} 65. Rg8+ {[%emt 0:00:01]} Kf6 {[%emt 0:00:50]} 66. Kb4 {[%emt 0:00:43]} Ra1 {[%emt 0:00:06]} 67. c6 {[%emt 0:00:14]} g3 {[%emt 0:02:29]} 68. fxg3 {[%emt 0:00:01]} f2 {[%emt 0:00:29]} 69. c7 {[%emt 0:01:28]} Ra7 {[%emt 0:02:06]} 70. gxh4 {[%emt 0:01:02]} Rb7+ {[%emt 0:00:31]} 71. Ka5 {[%emt 0:01:31]} Rxc7 {[%emt 0:00:07]} 72. Bd3 {[%emt 0:01:49]} Rc3 {[%emt 0:01:04]} 73. Be2 {[%emt 0:00:30]} Ke7 {[%emt 0:00:57]} 74. Rg7+ {[%emt 0:00:44]} Kd6 {[%emt 0:00:34]} 75. Rf7 {[%emt 0:00:19]} f1=Q {[%emt 0:01:08]} 76. Bxf1 {[%emt 0:00:01]} Bxf1 {[%emt 0:00:10]} 77. Rxf1 {[%emt 0:00:07]} Rxe3 {[%emt 0:00:06]} 78. Rf8 {[%emt 0:00:42]} Re5+ {[%emt 0:00:36]} 79. Kb4 {[%emt 0:00:13]} Re4+ {[%emt 0:00:07]} 80. Kc3 {[%emt 0:00:09]} Rxh4 {[%emt 0:00:04]} 81. Kd3 {[%emt 0:00:06]} Ke7 {[%emt 0:00:14]} 82. Rf3 {[%emt 0:00:07]} Rh6 {[%emt 0:00:07]} 83. Re3+ {[%emt 0:00:04]} Re6 {[%emt 0:00:05]} 84. Rxe6+ {[%emt 0:00:04]} Kxe6 {[%emt 0:00:05]} 85. Ke4 1/2-1/2

[Event "FIDE WYCC Open U14 2023"]
[Site "Montesilvano"]
[Date "2023.11.20"]
[Round "7.30"]
[White "Sheahan, Gavin"]
[Black "Tregubenko, Nikolay"]
[Result "1-0"]
[ECO "E94"]
[WhiteElo "1807"]
[BlackElo "2138"]
[Annotator "NA RC"]
[PlyCount "141"]
[EventDate "2023.11.13"]
[EventType "swiss"]
[EventCountry "ITA"]
[SourceTitle "playchess.com"]
[Source "ChessBase"]
[SourceQuality "1"]
[TimeControl "40/5400+30:1800+30"]

1. d4 {[%emt 0:00:01]} Nf6 {[%emt 0:00:04]} 2. c4 {[%emt 0:00:05]} g6 {[%emt 0:00:03]} 3. Nc3 {[%emt 0:00:19]} Bg7 {[%emt 0:00:04]} 4. e4 {[%emt 0:00:05]} d6 {[%emt 0:00:02]} 5. Be2 {[%emt 0:00:06]} O-O {[%emt 0:00:05]} 6. Nf3 {[%emt 0:00:02]} e5 {[%emt 0:00:05]} 7. O-O {[%emt 0:00:05]} Bg4 {[%emt 0:00:08]} 8. Be3 {[%emt 0:02:00]} Bxf3 {[%emt 0:00:20]} 9. Bxf3 {[%emt 0:00:12]} exd4 {[%emt 0:00:05]} 10. Bxd4 {[%emt 0:00:20]} Nc6 {[%emt 0:00:03]} 11. Be3 {[%emt 0:01:20]} Nd7 {[%emt 0:00:05]} 12. Be2 {[%emt 0:05:40]} Nc5 {[%emt 0:04:11]} 13. f3 {[%emt 0:02:37]} Ne6 {[%emt 0:00:15]} 14. Re1 {[%emt 0:01:16]} Bd4 {[%emt 0:14:16]} 15. Bf1 {[%emt 0:04:30]} Bxe3+ {[%emt 0:03:00]} 16. Rxe3 {[%emt 0:00:03]} Qg5 {[%emt 0:02:42]} 17. Qd2 {[%emt 0:07:41]} Ncd4 {[%emt 0:05:09]} 18. Rd1 {[%emt 0:05:04]} c5 {[%emt 0:04:20]} 19. Kh1 {[%emt 0:02:33]} Nc2 {[%emt 0:07:08]} 20. f4 {[%emt 0:10:20]} Qxf4 {[%emt 0:01:20]} 21. Nd5 {[%emt 0:01:09]} Nxe3 {[%emt 0:00:18]} 22. Nxf4 {[%emt 0:00:09]} Nxd1 {[%emt 0:00:04]} 23. Nxe6 {[%emt 0:00:36]} Nf2+ {[%emt 0:00:46]} 24. Qxf2 {[%emt 0:00:17]} fxe6 {[%emt 0:00:02]} 25. Qe1 {[%emt 0:00:53]} Rf4 {[%emt 0:01:23]} 26. g3 {[%emt 0:02:32]} Rf6 {[%emt 0:00:31]} 27. Bh3 {[%emt 0:00:24]} e5 {[%emt 0:02:56]} 28. Qd2 {[%emt 0:01:39]} Kg7 {[%emt 0:00:09]} 29. Qd5 {[%emt 0:11:53]} Rb8 {[%emt 0:00:27]} 30. Be6 {[%emt 0:13:30]} Kh8 {[%emt 0:00:33]} 31. h4 {[%emt 0:03:36]} Re8 {[%emt 0:02:57]} 32. Bh3 {[%emt 0:00:40]} Re7 {[%emt 0:07:29]} 33. g4 {[%emt 0:04:06]} g5 {[%emt 0:00:28]} 34. hxg5 {[%emt 0:01:55]} Rg6 {[%emt 0:00:40]} 35. Qd2 {[%emt 0:01:05]} Rf7 {[%emt 0:01:27]} 36. Qd5 {[%emt 0:02:32]} Kg7 {[%emt 0:01:29]} 37. Kg2 {[%emt 0:03:17]} Rxg5 {[%emt 0:04:43]} 38. Qxd6 {[%emt 0:04:31]} h5 {[%emt 0:00:11]} 39. Qd8 {[%emt 0:00:28]} Kg6 {[%emt 0:02:17]} 40. Kg3 {[%emt 0:00:00]} hxg4 {[%emt 0:00:00]} 41. Bg2 {[%emt 0:04:19]} b6 {[%emt 0:04:47]} 42. a4 {[%emt 0:00:44]} Rf6 {[%emt 0:06:10]} 43. Qe8+ {[%emt 0:03:39]} Rf7 {[%emt 0:03:51]} 44. Qe6+ {[%emt 0:01:10]} Kg7 {[%emt 0:00:35]} 45. Kh4 {[%emt 0:00:32]} Rg6 {[%emt 0:00:35]} 46. Qxe5+ {[%emt 0:00:09]} Kh7 {[%emt 0:03:58]} 47. Kg3 {[%emt 0:00:18]} Rd7 {[%emt 0:00:59]} 48. Bf1 {[%emt 0:03:03]} Rd1 {[%emt 0:07:32]} 49. Be2 {[%emt 0:01:58]} Re1 {[%emt 0:02:24]} 50. Kf2 {[%emt 0:02:55]} Rh1 {[%emt 0:00:50]} 51. Kg2 {[%emt 0:07:34]} Re1 {[%emt 0:00:38]} 52. Qh2+ {[%emt 0:01:49]} Kg7 {[%emt 0:02:10]} 53. Qe5+ {[%emt 0:02:13]} Kh7 {[%emt 0:01:03]} 54. Qe7+ {[%emt 0:00:17]} Kg8 {[%emt 0:02:25]} 55. Kf2 {[%emt 0:01:16]} Rh1 {[%emt 0:08:24]} 56. Bxg4 {[%emt 0:02:15]} Rh2+ {[%emt 0:00:13]} 57. Kf3 {[%emt 0:00:15]} Kh8 {[%emt 0:00:22]} 58. Qe5+ {[%emt 0:00:15]} Kg8 {[%emt 0:00:04]} 59. Qxh2 {[%emt 0:00:07]} Rf6+ {[%emt 0:02:49]} 60. Bf5 {[%emt 0:00:10]} Kf7 {[%emt 0:00:05]} 61. Qh7+ {[%emt 0:00:13]} Kf8 {[%emt 0:00:05]} 62. e5 {[%emt 0:00:29]} Rf7 {[%emt 0:00:03]} 63. Qh8+ {[%emt 0:00:08]} Ke7 {[%emt 0:00:01]} 64. Ke4 {[%emt 0:00:10]} a5 {[%emt 0:01:30]} 65. e6 {[%emt 0:00:22]} b5 {[%emt 0:00:05]} 66. exf7 {[%emt 0:00:08]} Kxf7 {[%emt 0:00:02]} 67. Ke5 {[%emt 0:00:13]} b4 {[%emt 0:00:06]} 68. Be6+ {[%emt 0:00:04]} Kg6 {[%emt 0:00:05]} 69. Qf6+ {[%emt 0:00:06]} Kh5 {[%emt 0:00:05]} 70. Kf5 {[%emt 0:00:16]} b3 {[%emt 0:00:05]} 71. Qg5# {[%emt 0:00:05]} 1-0

[Event "FIDE WYCC Open U14 2023"]
[Site "Montesilvano"]
[Date "2023.11.20"]
[Round "7.31"]
[White "Yang, Sylvia Siyuan"]
[Black "Vingris, Mikelis"]
[Result "1-0"]
[ECO "A04"]
[WhiteElo "1973"]
[BlackElo "2127"]
[Annotator "NA RC"]
[PlyCount "119"]
[EventDate "2023.11.13"]
[EventType "swiss"]
[EventCountry "ITA"]
[SourceTitle "playchess.com"]
[Source "ChessBase"]
[SourceQuality "1"]
[TimeControl "40/5400+30:1800+30"]

1. Nf3 {[%emt 0:00:03]} c5 {[%emt 0:03:16]} 2. g3 {[%emt 0:01:15]} Nc6 {[%emt 0:00:22]} 3. Bg2 {[%emt 0:00:08]} e5 {[%emt 0:00:44]} 4. d3 {[%emt 0:00:04]} g6 {[%emt 0:00:29]} 5. O-O {[%emt 0:00:09]} Bg7 {[%emt 0:00:16]} 6. c4 {[%emt 0:01:03]} Nge7 {[%emt 0:00:32]} 7. Nc3 {[%emt 0:00:09]} O-O {[%emt 0:01:34]} 8. a3 {[%emt 0:01:39]} d6 {[%emt 0:03:07]} 9. Rb1 {[%emt 0:01:03]} a5 {[%emt 0:00:51]} 10. Ne1 {[%emt 0:04:52]} Be6 {[%emt 0:02:07]} 11. Nc2 {[%emt 0:01:20]} Rb8 {[%emt 0:12:47]} 12. Ne3 {[%emt 0:08:28]} Qd7 {[%emt 0:01:16]} 13. Ned5 {[%emt 0:05:34]} f5 {[%emt 0:16:03]} 14. Bg5 {[%emt 0:06:10]} h6 {[%emt 0:04:43]} 15. Bxe7 {[%emt 0:03:19]} Nxe7 {[%emt 0:00:09]} 16. b4 {[%emt 0:03:58]} axb4 {[%emt 0:06:33]} 17. Nxe7+ {[%emt 0:00:57]} Qxe7 {[%emt 0:00:14]} 18. Nd5 {[%emt 0:00:02]} Qf7 {[%emt 0:09:22]} 19. axb4 {[%emt 0:00:17]} b5 {[%emt 0:01:25]} 20. Qd2 {[%emt 0:07:03]} Kh7 {[%emt 0:03:44]} 21. bxc5 {[%emt 0:01:06]} dxc5 {[%emt 0:00:56]} 22. Qa5 {[%emt 0:01:57]} bxc4 {[%emt 0:05:11]} 23. dxc4 {[%emt 0:00:01]} e4 {[%emt 0:07:25]} 24. Rxb8 {[%emt 0:03:22]} Rxb8 {[%emt 0:00:02]} 25. Qxc5 {[%emt 0:00:30]} Rc8 {[%emt 0:07:18]} 26. Qb5 {[%emt 0:00:22]} Bd4 {[%emt 0:05:18]} 27. e3 {[%emt 0:00:18]} Bc5 {[%emt 0:00:44]} 28. Rd1 {[%emt 0:00:49]} Bf8 {[%emt 0:01:28]} 29. Bf1 {[%emt 0:00:59]} Rc5 {[%emt 0:01:37]} 30. Qb8 {[%emt 0:00:01]} Rc8 {[%emt 0:00:39]} 31. Qb6 {[%emt 0:00:52]} Bc5 {[%emt 0:00:39]} 32. Qa6 {[%emt 0:00:01]} Rd8 {[%emt 0:04:03]} 33. Qa5 {[%emt 0:00:01]} Rc8 {[%emt 0:00:37]} 34. Qc3 {[%emt 0:02:17]} Qg7 {[%emt 0:00:31]} 35. Nf6+ {[%emt 0:01:31]} Kh8 {[%emt 0:00:05]} 36. Qe5 {[%emt 0:00:00]} Bf7 {[%emt 0:00:54]} 37. Rd7 {[%emt 0:00:52]} Bf8 {[%emt 0:00:36]} 38. Qd4 {[%emt 0:02:28]} Rc6 {[%emt 0:01:11]} 39. Nd5 {[%emt 0:00:16]} Bc5 {[%emt 0:00:32]} 40. Qd1 {[%emt 0:00:00]} Rd6 {[%emt 0:00:00]} 41. Rc7 {[%emt 0:02:59]} Bb6 {[%emt 0:05:16]} 42. Rb7 {[%emt 0:01:01]} Bd8 {[%emt 0:03:25]} 43. Qa4 {[%emt 0:00:47]} Qf8 {[%emt 0:00:55]} 44. Nf4 {[%emt 0:13:30]} Rb6 {[%emt 0:15:44]} 45. Rd7 {[%emt 0:03:24]} g5 {[%emt 0:02:00]} 46. c5 {[%emt 0:00:20]} Rf6 {[%emt 0:00:59]} 47. Qd4 {[%emt 0:00:25]} Be7 {[%emt 0:01:03]} 48. Qe5 {[%emt 0:00:49]} Bd8 {[%emt 0:02:07]} 49. c6 {[%emt 0:02:57]} Kg8 {[%emt 0:01:56]} 50. Rxd8 {[%emt 0:00:34]} Qxd8 {[%emt 0:00:06]} 51. c7 {[%emt 0:00:02]} Qd7 {[%emt 0:01:18]} 52. Qxf6 {[%emt 0:00:02]} Qxc7 {[%emt 0:00:23]} 53. Ne6 {[%emt 0:00:02]} Bxe6 {[%emt 0:00:17]} 54. Qxe6+ {[%emt 0:00:01]} Kg7 {[%emt 0:00:17]} 55. Qxf5 {[%emt 0:00:01]} Qc2 {[%emt 0:00:25]} 56. h3 {[%emt 0:00:06]} Qb1 {[%emt 0:00:21]} 57. Qb5 {[%emt 0:00:07]} Qc2 {[%emt 0:00:25]} 58. Bg2 {[%emt 0:00:13]} Qd1+ {[%emt 0:00:16]} 59. Kh2 {[%emt 0:00:02]} Qd2 {[%emt 0:00:11]} 60. Qe5+ {[%emt 0:00:02]} 1-0

[Event "FIDE WYCC Open U14 2023"]
[Site "Montesilvano"]
[Date "2023.11.20"]
[Round "7.32"]
[White "Medhus, Vitus Bondo"]
[Black "Coicev, Matei-Andrei"]
[Result "0-1"]
[ECO "D04"]
[WhiteElo "2108"]
[BlackElo "2006"]
[Annotator "NA RC"]
[PlyCount "130"]
[EventDate "2023.11.13"]
[EventType "swiss"]
[EventCountry "ITA"]
[SourceTitle "playchess.com"]
[Source "ChessBase"]
[SourceQuality "1"]
[TimeControl "40/5400+30:1800+30"]

1. d4 {[%emt 0:00:05]} Nf6 {[%emt 0:00:28]} 2. Nf3 {[%emt 0:00:08]} d5 {[%emt 0:00:44]} 3. e3 {[%emt 0:00:13]} c5 {[%emt 0:00:20]} 4. Nbd2 {[%emt 0:01:54]} Nc6 {[%emt 0:00:17]} 5. b3 {[%emt 0:01:01]} cxd4 {[%emt 0:01:08]} 6. exd4 {[%emt 0:00:11]} Bf5 {[%emt 0:00:10]} 7. c3 {[%emt 0:07:35]} e6 {[%emt 0:01:54]} 8. Bb2 {[%emt 0:01:08]} Bd6 {[%emt 0:00:20]} 9. Bb5 {[%emt 0:02:08]} O-O {[%emt 0:00:37]} 10. O-O {[%emt 0:00:38]} Rc8 {[%emt 0:02:11]} 11. Re1 {[%emt 0:02:42]} Ne4 {[%emt 0:08:36]} 12. c4 {[%emt 0:05:47]} Nxd2 {[%emt 0:01:45]} 13. Qxd2 {[%emt 0:02:59]} Bb4 {[%emt 0:00:54]} 14. Bc3 {[%emt 0:00:30]} Bxc3 {[%emt 0:00:17]} 15. Qxc3 {[%emt 0:00:11]} dxc4 {[%emt 0:02:03]} 16. bxc4 {[%emt 0:06:14]} Ne7 {[%emt 0:02:51]} 17. Ne5 {[%emt 0:05:39]} a6 {[%emt 0:01:22]} 18. Bd7 {[%emt 0:04:24]} Rc7 {[%emt 0:00:41]} 19. Ba4 {[%emt 0:00:31]} b5 {[%emt 0:01:14]} 20. Bb3 {[%emt 0:00:39]} f6 {[%emt 0:01:35]} 21. Nf3 {[%emt 0:05:05]} Nd5 {[%emt 0:01:02]} 22. Qa5 {[%emt 0:01:47]} bxc4 {[%emt 0:00:36]} 23. Ba4 {[%emt 0:00:36]} Qd6 {[%emt 0:02:13]} 24. Rac1 {[%emt 0:02:49]} Rb8 {[%emt 0:02:33]} 25. Nd2 {[%emt 0:05:29]} Qb4 {[%emt 0:03:21]} 26. Qxb4 {[%emt 0:01:09]} Rxb4 {[%emt 0:00:02]} 27. Bc2 {[%emt 0:00:39]} Bxc2 {[%emt 0:01:22]} 28. Rxc2 {[%emt 0:00:07]} c3 {[%emt 0:00:45]} 29. Nb3 {[%emt 0:00:10]} a5 {[%emt 0:06:36]} 30. Nc5 {[%emt 0:06:53]} Rc6 {[%emt 0:02:29]} 31. g3 {[%emt 0:02:09]} e5 {[%emt 0:02:02]} 32. Rd1 {[%emt 0:03:44]} Rxd4 {[%emt 0:00:15]} 33. Rxd4 {[%emt 0:00:19]} exd4 {[%emt 0:00:02]} 34. Nb3 {[%emt 0:00:46]} d3 {[%emt 0:00:07]} 35. Rc1 {[%emt 0:00:14]} d2 {[%emt 0:00:09]} 36. Rd1 {[%emt 0:00:16]} c2 {[%emt 0:01:34]} 37. Rxd2 {[%emt 0:00:06]} c1=Q+ {[%emt 0:00:07]} 38. Nxc1 {[%emt 0:00:08]} Rxc1+ {[%emt 0:00:02]} 39. Kg2 {[%emt 0:00:08]} Rc5 {[%emt 0:00:08]} 40. Kf3 {[%emt 0:00:00]} Kf7 {[%emt 0:00:00]} 41. g4 {[%emt 0:00:42]} Nb4 {[%emt 0:00:41]} 42. a4 {[%emt 0:00:54]} Nc6 {[%emt 0:00:16]} 43. Rd7+ {[%emt 0:00:13]} Kg6 {[%emt 0:00:10]} 44. Kg3 {[%emt 0:00:15]} Ne5 {[%emt 0:00:18]} 45. Ra7 {[%emt 0:00:21]} Rc3+ {[%emt 0:00:26]} 46. f3 {[%emt 0:00:05]} Rxf3+ {[%emt 0:00:29]} 47. Kg2 {[%emt 0:00:24]} Rf4 {[%emt 0:00:02]} 48. Rxa5 {[%emt 0:00:28]} Rxg4+ {[%emt 0:00:06]} 49. Kf2 {[%emt 0:00:23]} Rb4 {[%emt 0:00:09]} 50. Ra8 {[%emt 0:00:14]} Kf5 {[%emt 0:00:12]} 51. a5 {[%emt 0:00:07]} Rb2+ {[%emt 0:00:05]} 52. Kg3 {[%emt 0:00:13]} g5 {[%emt 0:00:22]} 53. Rh8 {[%emt 0:00:49]} Ra2 {[%emt 0:00:11]} 54. Rxh7 {[%emt 0:00:15]} Ra3+ {[%emt 0:00:05]} 55. Kg2 {[%emt 0:00:13]} Rxa5 {[%emt 0:00:01]} 56. Rb7 {[%emt 0:00:20]} Ra4 {[%emt 0:00:08]} 57. Rb2 {[%emt 0:00:15]} Nd3 {[%emt 0:00:24]} 58. Rb3 {[%emt 0:00:11]} Ra2+ {[%emt 0:00:06]} 59. Kg3 {[%emt 0:00:31]} Nf4 {[%emt 0:01:00]} 60. Rb5+ {[%emt 0:00:06]} Kg6 {[%emt 0:00:08]} 61. h4 {[%emt 0:00:20]} Nh5+ {[%emt 0:00:33]} 62. Kh3 {[%emt 0:00:17]} Ra3+ {[%emt 0:00:12]} 63. Kg2 {[%emt 0:00:19]} Nf4+ {[%emt 0:00:11]} 64. Kh2 {[%emt 0:00:10]} g4 {[%emt 0:00:12]} 65. Rb4 {[%emt 0:00:15]} g3+ {[%emt 0:00:06]} 0-1

[Event "FIDE WYCC Open U14 2023"]
[Site "Montesilvano"]
[Date "2023.11.20"]
[Round "7.33"]
[White "Warchol, Kamil"]
[Black "Sharshenbekov, Emir"]
[Result "*"]
[ECO "C45"]
[WhiteElo "2095"]
[BlackElo "1893"]
[Annotator "NA RC"]
[PlyCount "64"]
[EventDate "2023.11.13"]
[EventType "swiss"]
[EventCountry "ITA"]
[SourceTitle "playchess.com"]
[Source "ChessBase"]
[SourceQuality "1"]
[TimeControl "40/5400+30:1800+30"]

1. e4 {[%emt 0:00:04]} e5 {[%emt 0:00:38]} 2. Nf3 {[%emt 0:00:22]} Nc6 {[%emt 0:00:13]} 3. d4 {[%emt 0:00:21]} exd4 {[%emt 0:00:17]} 4. Nxd4 {[%emt 0:00:09]} Nf6 {[%emt 0:00:21]} 5. Nxc6 {[%emt 0:00:32]} bxc6 {[%emt 0:00:14]} 6. e5 {[%emt 0:00:20]} Qe7 {[%emt 0:00:13]} 7. Qe2 {[%emt 0:00:13]} Nd5 {[%emt 0:00:16]} 8. h4 {[%emt 0:00:14]} d6 {[%emt 0:01:17]} 9. c4 {[%emt 0:01:57]} Nb6 {[%emt 0:00:50]} 10. exd6 {[%emt 0:00:57]} Qxe2+ {[%emt 0:03:16]} 11. Bxe2 {[%emt 0:00:41]} cxd6 {[%emt 0:00:52]} 12. b3 {[%emt 0:11:28]} Be6 {[%emt 0:16:08]} 13. Bb2 {[%emt 0:04:30]} d5 {[%emt 0:03:34]} 14. cxd5 {[%emt 0:07:21]} Bxd5 {[%emt 0:03:10]} 15. O-O {[%emt 0:02:44]} Be7 {[%emt 0:03:16]} 16. Nc3 {[%emt 0:02:52]} Be6 {[%emt 0:00:48]} 17. Bf3 {[%emt 0:04:36]} Rc8 {[%emt 0:00:18]} 18. Ne4 {[%emt 0:05:26]} O-O {[%emt 0:00:19]} 19. g3 {[%emt 0:01:06]} Bd5 {[%emt 0:13:36]} 20. Rfd1 {[%emt 0:16:40]} f5 {[%emt 0:06:18]} 21. Ng5 {[%emt 0:04:40]} Bxg5 {[%emt 0:00:51]} 22. Bxd5+ {[%emt 0:00:23]} Nxd5 {[%emt 0:00:11]} 23. hxg5 {[%emt 0:00:16]} f4 {[%emt 0:00:08]} 24. g4 {[%emt 0:11:26]} f3 {[%emt 0:06:33]} 25. Rac1 {[%emt 0:02:46]} Nf4 {[%emt 0:27:15]} 26. Rd7 {[%emt 0:02:40]} Rf7 {[%emt 0:00:48]} 27. Rxf7 {[%emt 0:03:41]} Kxf7 {[%emt 0:00:02]} 28. Rd1 {[%emt 0:03:09]} Nh3+ {[%emt 0:02:30]} 29. Kf1 {[%emt 0:01:10]} Nxg5 {[%emt 0:07:50]} 30. Rd7+ {[%emt 0:03:37]} Ke6 {[%emt 0:00:07]} 31. Rxa7 {[%emt 0:04:01]} Rd8 {[%emt 0:00:41]} 32. Ke1 {[%emt 0:01:34]} Ne4 {[%emt 0:02:22]} *

[Event "FIDE WYCC Open U14 2023"]
[Site "Montesilvano"]
[Date "2023.11.20"]
[Round "7.34"]
[White "Vommaro, Stanislao"]
[Black "Lira, Suan Bruno Fernandes"]
[Result "1/2-1/2"]
[ECO "B15"]
[WhiteElo "2083"]
[BlackElo "1858"]
[Annotator "NA RC"]
[PlyCount "116"]
[EventDate "2023.11.13"]
[EventType "swiss"]
[EventCountry "ITA"]
[SourceTitle "playchess.com"]
[Source "ChessBase"]
[SourceQuality "1"]
[TimeControl "40/5400+30:1800+30"]

1. e4 {[%emt 0:02:24]} c6 {[%emt 0:00:03]} 2. d4 {[%emt 0:01:00]} d5 {[%emt 0:00:05]} 3. Nc3 {[%emt 0:00:24]} dxe4 {[%emt 0:00:04]} 4. Nxe4 {[%emt 0:00:34]} Nf6 {[%emt 0:00:09]} 5. Nxf6+ {[%emt 0:00:42]} exf6 {[%emt 0:00:05]} 6. c3 {[%emt 0:01:34]} Bd6 {[%emt 0:00:05]} 7. Bd3 {[%emt 0:00:36]} O-O {[%emt 0:00:09]} 8. Ne2 {[%emt 0:01:19]} Re8 {[%emt 0:00:12]} 9. O-O {[%emt 0:01:16]} Nd7 {[%emt 0:00:44]} 10. Bf4 {[%emt 0:08:27]} Nf8 {[%emt 0:01:01]} 11. Qd2 {[%emt 0:03:35]} Ng6 {[%emt 0:02:10]} 12. Bxd6 {[%emt 0:00:30]} Qxd6 {[%emt 0:00:07]} 13. f4 {[%emt 0:25:29]} f5 {[%emt 0:05:42]} 14. Ng3 {[%emt 0:07:48]} Ne7 {[%emt 0:12:06]} 15. Bc4 {[%emt 0:14:34]} b5 {[%emt 0:08:04]} 16. Bb3 {[%emt 0:01:02]} Nd5 {[%emt 0:07:04]} 17. Bxd5 {[%emt 0:03:08]} Qxd5 {[%emt 0:00:43]} 18. Rfe1 {[%emt 0:01:13]} Be6 {[%emt 0:03:40]} 19. Re5 {[%emt 0:01:40]} Qd7 {[%emt 0:00:07]} 20. a3 {[%emt 0:11:23]} f6 {[%emt 0:01:22]} 21. Re2 {[%emt 0:00:36]} Bc4 {[%emt 0:10:13]} 22. Rxe8+ {[%emt 0:00:41]} Rxe8 {[%emt 0:00:05]} 23. Re1 {[%emt 0:00:49]} g6 {[%emt 0:02:10]} 24. Kf2 Kf7 {[%emt 0:09:13]} 25. Rxe8 {[%emt 0:08:40]} Qxe8 {[%emt 0:00:09]} 26. Qe3 {[%emt 0:01:38]} Qd7 {[%emt 0:07:20]} 27. Ke1 {[%emt 0:02:04]} a5 {[%emt 0:03:21]} 28. Kf2 {[%emt 0:00:53]} Qd5 {[%emt 0:03:45]} 29. Qf3 {[%emt 0:00:29]} Qd6 {[%emt 0:09:02]} 30. h4 {[%emt 0:00:31]} Bd5 {[%emt 0:01:43]} 31. Qe3 {[%emt 0:00:20]} Be6 {[%emt 0:05:33]} 32. Ne2 {[%emt 0:00:38]} Qd5 {[%emt 0:00:46]} 33. Nc1 {[%emt 0:00:26]} Qe4 {[%emt 0:02:09]} 34. Nd3 {[%emt 0:00:29]} Bd5 {[%emt 0:01:50]} 35. Qxe4 {[%emt 0:00:23]} fxe4 {[%emt 0:00:15]} 36. Nc5 {[%emt 0:00:30]} e3+ {[%emt 0:05:23]} 37. Kxe3 {[%emt 0:00:04]} Bxg2 {[%emt 0:00:04]} 38. b3 {[%emt 0:00:48]} Bd5 {[%emt 0:00:18]} 39. Kd3 {[%emt 0:00:31]} g5 {[%emt 0:02:03]} 40. hxg5 {[%emt 0:00:00]} fxg5 {[%emt 0:00:00]} 41. fxg5 {[%emt 0:01:01]} Kg6 {[%emt 0:02:21]} 42. c4 {[%emt 0:02:10]} bxc4+ {[%emt 0:00:52]} 43. bxc4 {[%emt 0:00:34]} Bf7 {[%emt 0:14:55]} 44. Ne4 {[%emt 0:02:15]} Be6 {[%emt 0:00:04]} 45. c5 {[%emt 0:12:52]} Bh3 {[%emt 0:05:13]} 46. Ke3 {[%emt 0:02:22]} Kf5 {[%emt 0:00:21]} 47. Nf6 {[%emt 0:13:05]} Kxg5 {[%emt 0:02:47]} 48. Nxh7+ {[%emt 0:00:23]} Kg6 {[%emt 0:00:43]} 49. d5 {[%emt 0:00:18]} Kxh7 {[%emt 0:02:12]} 50. dxc6 {[%emt 0:00:15]} Kg7 {[%emt 0:00:37]} 51. Kd4 {[%emt 0:00:23]} Kf7 {[%emt 0:01:27]} 52. Kc4 {[%emt 0:00:45]} Ke6 {[%emt 0:01:49]} 53. Kb5 {[%emt 0:00:29]} Kd5 {[%emt 0:00:33]} 54. c7 {[%emt 0:00:14]} Bc8 {[%emt 0:00:39]} 55. a4 {[%emt 0:00:36]} Kd4 {[%emt 0:01:12]} 56. c6 {[%emt 0:00:37]} Kd5 {[%emt 0:00:11]} 57. Kb6 {[%emt 0:00:17]} Kd6 {[%emt 0:00:18]} 58. Kxa5 {[%emt 0:00:26]} Kxc6 {[%emt 0:00:07]} 1/2-1/2